Workbook

Sheet MYP, MSS
B1: Santtu Savusalo | E1: 16.7.2004 Grapevine, USA
B2: YKKÖSPESIS | E2: Runkosarja | L2: Runkosarja TOP-10 | Q2: Jatkosarjat | X2: SUOMENSARJA | AA2: Runkosarja | AH2: Runkosarja TOP-10 | AM2: Jatkosarjat
B3: Vuosi | C3: Sija | D3: Seura | E3: OTT | F3: KUN | G3: LÖI | H3: TOI | I3: KL | J3: KL-% | L3: LÖI | M3: TOI | N3: L+T | O3: KL | Q3: OTT | R3: KUN | S3: LÖI | T3: TOI | U3: KL | V3: KL-% | X3: Vuosi | Y3: Sija | Z3: Seura | AA3: OTT | AB3: KUN | AC3: LÖI | AD3: TOI | AE3: KL | AF3: KL-% | AH3: LÖI | AI3: TOI | AJ3: L+T | AK3: KL | AM3: OTT | AN3: KUN | AO3: LÖI | AP3: TOI | AQ3: KL | AR3: KL-%
X4: 2019 | Y4: 6. | Z4: Lippo Jun 2 | AA4: 6 | AB4: 0 | AC4: 5 | AD4: 2 | AE4: 12 | AF4: 37.5 % | AG4: 32
X5: 2020 | Y5: 4. | Z5: Lippo Jun 2 | AA5: 7 | AB5: 0 | AC5: 6 | AD5: 1 | AE5: 19 | AF5: 59.4 % | AG5: 32
X6: 2021 | Y6: 6. | Z6: Lippo Jun 2 | AA6: 17 | AB6: 1 | AC6: 26 | AD6: 14 | AE6: 90 | AF6: 70.3 % | AG6: 128
X7: 2023 | Y7: 2. | Z7: Lippo Jun 2 | AA7: 6 | AB7: 1 | AC7: 11 | AD7: 10 | AE7: 30 | AF7: 58.8 % | AG7: 51 | AM7: 4 | AN7: 0 | AO7: 2 | AP7: 4 | AQ7: 15 | AR7: 51.7 % | AS7: 29
X8: 2022 | Y8: 3. | Z8: Lippo Jun 2 | AA8: 14 | AB8: 3 | AC8: 19 | AD8: 14 | AE8: 71 | AF8: 74.0 % | AG8: 96 | AM8: 2 | AN8: 0 | AO8: 1 | AP8: 0 | AQ8: 3 | AR8: 25.0 % | AS8: 12
B9: 2023 | C9: 4. | D9: Lippo Jun | E9: 11 | F9: 0 | G9: 1 | H9: 5 | I9: 13 | J9: 38.2 % | K9: 34
B10: YHTEENSÄ | E10: =SUM(E4:E9) -> 11 | F10: =SUM(F4:F9) -> 0 | G10: 1 | H10: 5 | I10: 13 | J10: 0.0 % | K10: =SUM(K9:K9) -> 34 | Q10: =SUM(Q4:Q9) -> 0 | R10: =SUM(R4:R9) -> 0 | S10: 0 | T10: 0 | U10: 0 | V10: 0.0 % | W10: =SUM(W9:W9) -> 0 | X10: YHTEENSÄ | AA10: =SUM(AA4:AA9) -> 50 | AB10: =SUM(AB4:AB9) -> 5 | AC10: 67 | AD10: 41 | AE10: 222 | AF10: =PRODUCT(AE10/AG10) -> 65.5 % | AG10: 339 | AM10: =SUM(AM4:AM9) -> 6 | AN10: =SUM(AN4:AN9) -> 0 | AO10: 3 | AP10: 4 | AQ10: 18 | AR10: =PRODUCT(AQ10/AS10) -> 43.9 % | AS10: =SUM(AS4:AS9) -> 41
B12: KAIKKI OTTELUT | E12: OTT | F12: KUN | G12: LÖI | H12: TOI | I12: KL | J12: KL-% | L12: ka/L | M12: ka/T | N12: ka/l+t | O12: ka/kl | R12: Seurat | T12: Lippo Jun = Oulun Lippo Juniorit (2003), kasvattajaseura
B13: SUPERPESIS | E13: 0 | F13: 0 | G13: 0 | H13: 0 | I13: 0 | J13: 0.0 % | L13: 0.00 | M13: 0.00 | N13: 0.00 | O13: 0.00
B14: YKKÖSPESIS | E14: =PRODUCT(E10+Q10) -> 11 | F14: =PRODUCT(F10+R10) -> 0 | G14: =PRODUCT(G10+S10) -> 1 | H14: =PRODUCT(H10+T10) -> 5 | I14: =PRODUCT(I10+U10) -> 13 | J14: 0.0 % | L14: 0.00 | M14: 0.00 | N14: 0.00 | O14: 0.00
B15: SUOMENSARJA | E15: =PRODUCT(AA10+AM10) -> 56 | F15: =PRODUCT(AB10+AN10) -> 5 | G15: =PRODUCT(AC10+AO10) -> 70 | H15: =PRODUCT(AD10+AP10) -> 45 | I15: =PRODUCT(AE10+AQ10) -> 240 | J15: =PRODUCT(I15/K15) -> 63.2 % | K15: =PRODUCT(AG10+AS10) -> 380 | L15: =PRODUCT((F15+G15)/E15) -> 1.34 | M15: =PRODUCT(H15/E15) -> 0.80 | N15: =PRODUCT((F15+G15+H15)/E15) -> 2.14 | O15: =PRODUCT(I15/E15) -> 4.29
B16: YHTEENSÄ | E16: =SUM(E13:E15) -> 67 | F16: =SUM(F13:F15) -> 5 | G16: 71 | H16: 50 | I16: 253 | J16: =PRODUCT(I16/K16) -> 66.6 % | K16: =SUM(K13:K15) -> 380 | L16: =PRODUCT((F16+G16)/E16) -> 1.13 | M16: =PRODUCT(H16/E16) -> 0.75 | N16: =PRODUCT((F16+G16+H16)/E16) -> 1.88 | O16: =PRODUCT(I16/E16) -> 3.78
